bitfinex-derivatives/quotes_SOLF0:USTF0_20241208
["timestamp","ask_amount","ask_price","bid_price","bid_amount"]
[1733662487872,4.7338,236.61,236.44,2.08]
[1733662488174,4.7338,236.61,236.45,3.80551552]
[1733662488378,4.7338,236.61,236.44,2.08]
[1733662488579,2.1127,236.51,236.45,2.1131]
[1733662488772,2.1127,236.51,236.44,2.08]
[1733662488773,2.08,236.55,236.44,2.08]
[1733662489574,2.1128,236.49,236.44,2.08]
[1733662491081,2.1128,236.49,236.43,3.3996]
[1733662491677,2.08,236.55,236.38,2.1137]
[1733662491977,2.08,236.55,236.39,1.05739925]
[1733662492178,2.1133,236.45,236.39,1.05739925]
[1733662492374,2.08,236.49,236.4,1.05739925]
[1733662492584,2.08,236.49,236.37,2.1139]
[1733662492880,1.3353,236.48,236.38,1.05750926]
[1733662493078,2.1132,236.46,236.39,1.05750926]
[1733662493274,1.3353,236.48,236.38,2.1138]
[1733662493479,1.3353,236.48,236.39,1.05752108]
[1733662493783,2.1133,236.45,236.38,2.1138]
[1733662494077,2.1133,236.45,236.39,1.05750271]
[1733662494281,2.1133,236.45,236.39,2.1137]
[1733662495677,1.3353,236.48,236.34,1.2993]
[1733662495876,1.3353,236.48,236.35,3.80703421]
[1733662496180,1.3353,236.48,236.36,1.05750567]
[1733662496377,1.3353,236.48,236.37,1.05750567]
[1733662496579,1.3353,236.48,236.34,1.2993]
[1733662496780,1.3353,236.48,236.35,1.05765574]
[1733662496982,1.3075,236.47,236.34,1.2993]
[1733662497178,1.3075,236.47,236.35,1.05766719]
[1733662497378,2.1137,236.4,236.34,1.2993]
[1733662497578,2.1137,236.4,236.35,1.05766719]
[1733662497780,1.3075,236.47,236.34,1.2993]
[1733662497973,1.3075,236.47,236.35,1.05766719]
[1733662498178,2.1137,236.39,236.34,1.2993]
[1733662498384,1.3075,236.47,236.27,1.41734117]
[1733662498385,2.2,236.44,236.27,1.3217]
[1733662498577,2.2,236.44,236.23,2.29564117]
[1733662498578,2.2,236.44,236.28,1.69260951]
[1733662498884,2.2,236.44,236.29,1.05788094]
[1733662498885,2.1143,236.33,236.29,1.05788094]
[1733662499077,2.2,236.37,236.23,4.9046]
[1733662499281,2.1146,236.3,236.24,2.75064217]
[1733662499481,2.1146,236.3,236.25,2.75064217]
[1733662499682,2.1146,236.3,236.25,1.05794167]
[1733662499880,2.1146,236.3,236.26,1.05794167]
[1733662500085,2.1146,236.3,236.27,1.05794167]
[1733662500285,2.1146,236.3,236.23,4.9046]
[1733662500475,2.1146,236.3,236.24,3.80876529]
[1733662500679,2.1151,236.24,236.17,1.3553]
[1733662500879,2.2,236.3,236.18,3.80941308]
[1733662501081,2.2,236.3,236.19,2.1163406]
[1733662501276,2.1149,236.27,236.17,1.3553]
[1733662501478,2.2,236.3,236.18,1.05826571]
[1733662501679,2.2,236.3,236.17,1.3553]
[1733662502081,2.2,236.3,236.18,1.05828997]
[1733662502280,2.2,236.3,236.17,1.3553]
[1733662502791,2.2,236.3,236.17,5.671]
[1733662503599,2.2,236.3,236.17,3.5553]
[1733662503794,2.2,236.3,236.18,1.05824962]
[1733662503996,2.2,236.3,236.17,3.5553]
[1733662504194,2.1152,236.23,236.17,2.2]
[1733662504397,2.2,236.3,236.12,1.3884]
[1733662504600,2.2,236.3,236.13,2.2]
[1733662504800,2.1155,236.19,236.13,2.2]
[1733662504994,2.2,236.24,236.13,2.2]
[1733662505196,2.2,236.24,236.1,2.2]
[1733662505392,2.2,236.24,236.06,87.99672521]
[1733662505393,4.0306,236.23,236.06,87.99672521]
[1733662505792,4.0306,236.23,236.06,85.88012521]
[1733662506001,2.1162,236.12,236.06,85.88012521]
[1733662506999,2.2,236.17,236.06,85.88012521]
[1733662507400,2.2,236.21,236.06,85.88012521]
[1733662507599,2.1159,236.15,236.06,85.88012521]
[1733662507798,2.2,236.21,236.06,85.88012521]
[1733662508299,2.2,236.21,236.06,87.99682521]
[1733662509005,2.116,236.14,236.06,87.99682521]
[1733662509193,2.2,236.21,236.06,85.88012521]
[1733662509903,4.0306,236.23,236.06,85.88012521]
[1733662510093,2.2,236.2,236.06,85.88012521]
[1733662510502,2.2,236.2,235.96,0.09579144]
[1733662510806,2.117,236.03,235.97,2.75367311]
[1733662511010,4.317,236.03,235.94,1.3364]
[1733662511304,4.317,236.03,235.95,4.87181238]
[1733662511505,2.2,236.03,235.96,1.05927399]
[1733662511799,2.2,236.03,235.94,1.3364]
[1733662512003,2.2,236.03,235.95,1.05937208]
[1733662512197,2.2,236.03,235.96,1.05937208]
[1733662512511,2.117,236.03,235.94,1.3364]
[1733662512701,2.2,236.02,235.95,1.05937697]
[1733662512904,2.2,236.02,235.96,1.05937697]
[1733662513206,2.2,236.02,235.97,1.05937697]
[1733662513505,2.2,236.02,235.94,1.3364]
[1733662513702,2.2,236.02,235.95,1.05937583]
[1733662513901,2.2,236.02,235.96,1.05937583]
[1733662514104,2.2,236.02,235.94,1.3364]
[1733662514407,2.2,236.02,235.97,1.05937505]
[1733662514599,2.2,236.02,235.94,1.3364]
[1733662514800,2.1173,236.0,235.94,1.3364]
[1733662515207,2.2,236.02,235.94,1.3364]
[1733662515400,2.2,236.02,235.95,1.05948322]
[1733662515604,2.2,236.02,235.94,1.3364]
[1733662515803,2.2,236.02,235.95,1.05948226]
[1733662516011,2.2,236.02,235.96,2.1176]
[1733662516200,1.0,236.19,235.97,1.05943347]
[1733662516201,2.38,236.04,235.97,1.05943347]
[1733662516402,2.38,236.07,235.98,1.05943347]
[1733662516600,2.38,236.06,235.94,1.3364]
[1733662516802,2.38,236.06,235.95,2.75435436]
[1733662517003,2.117,236.03,235.96,2.75435436]
[1733662517204,2.38,236.06,235.97,2.75435436]
[1733662517509,2.38,236.06,235.98,1.05936706]
[1733662517699,2.38,236.06,235.99,1.05936706]
[1733662517904,2.38,236.06,235.99,2.1173]
[1733662518104,2.38,236.16,236.0,1.05925599]
[1733662518305,2.38,236.16,236.01,4.53159906]
[1733662518507,2.1162,236.11,236.04,2.1168]
[1733662518705,2.1162,236.11,236.05,1.05925599]
[1733662518908,2.38,236.16,236.04,2.1168]
[1733662519109,2.38,236.16,236.05,1.05913146]
[1733662519307,2.38,236.16,236.02,2.117]
[1733662519502,2.38,236.16,236.03,2.75374106]
[1733662519707,2.38,236.16,236.03,3.17603118]
[1733662520002,2.38,236.15,236.04,1.05913118]
[1733662520198,2.38,236.15,236.01,1.3541]
[1733662520199,44.04,236.31,236.05,1.05913118]
[1733662520404,2.38,236.22,236.06,2.75353089]
[1733662520610,44.04,236.31,236.07,2.75353089]
[1733662520611,2.38,236.21,236.07,2.75353089]
[1733662520906,2.38,236.21,236.08,1.05913118]
[1733662521202,2.38,236.21,236.09,1.05913118]
[1733662521406,2.38,236.21,236.1,1.05913118]
[1733662521706,2.38,236.21,236.08,2.1165]
[1733662521707,2.38,236.21,236.11,1.05913118]
[1733662522002,2.38,236.21,236.04,3.705]
[1733662522205,2.38,236.21,236.05,4.87114055]
[1733662522398,2.38,236.21,236.06,4.87114055]
[1733662522603,2.1158,236.16,236.08,2.1165]
[1733662522803,2.38,236.21,236.08,2.1165]
[1733662523011,2.38,236.21,236.09,2.75307542]
[1733662523307,2.1159,236.15,236.1,1.05887516]
[1733662523508,2.1159,236.15,236.11,1.05893345]
[1733662523709,2.38,236.21,236.06,2.1166]
[1733662523909,2.1159,236.15,236.07,2.75326137]
[1733662524214,2.1159,236.15,236.08,4.86976137]
[1733662524518,2.1159,236.15,236.09,1.05894668]
[1733662524712,2.1159,236.15,236.1,1.05894668]
[1733662525012,2.1157,236.17,236.11,1.05894668]
[1733662525215,2.1157,236.17,236.12,1.05889152]
[1733662525416,2.1157,236.17,236.1,2.1163]
[1733662525607,2.1157,236.17,236.11,1.05888683]
[1733662525813,2.1157,236.17,236.12,1.05888683]
[1733662526014,2.1157,236.17,236.1,2.1163]
[1733662526421,2.1157,236.17,236.11,1.05887705]
[1733662526717,2.1157,236.17,236.12,1.05887705]
[1733662526914,2.1157,236.17,236.13,1.05887705]
[1733662527123,2.1157,236.17,236.1,2.1163]
[1733662527320,2.1157,236.17,236.11,2.75308887]
[1733662527521,2.1157,236.17,236.12,1.05888033]
[1733662527816,2.38,236.19,236.13,1.05888033]
[1733662528119,2.38,236.19,236.14,1.05888033]
[1733662528418,2.38,236.19,236.15,1.05888033]
[1733662528719,2.1156,236.18,236.1,2.1163]
[1733662528920,2.1156,236.18,236.11,2.753039]
[1733662529121,2.1156,236.18,236.12,2.753039]
[1733662529316,2.1156,236.18,236.13,2.753039]
[1733662529515,2.1156,236.18,236.14,1.05886115]
[1733662529823,2.1156,236.18,236.15,1.05882636]
[1733662530016,2.1156,236.18,236.16,1.05882636]
[1733662530317,2.1156,236.18,236.1,2.1163]
[1733662530517,2.1156,236.18,236.11,4.87060127]
[1733662530720,2.1157,236.17,236.12,2.75294854]
[1733662530913,2.1157,236.17,236.13,2.75294854]
[1733662531115,2.1157,236.17,236.14,1.05882636]
[1733662531419,4.4956,236.19,236.15,1.05882636]
[1733662531611,4.4956,236.19,236.16,1.05882636]
[1733662531809,4.4956,236.19,236.17,1.05882636]
[1733662532021,2.1156,236.18,236.12,2.1161]
[1733662532211,2.1156,236.18,236.13,4.87060685]
[1733662532519,2.1156,236.18,236.14,2.75294464]
[1733662532709,2.1156,236.18,236.15,2.75294464]
[1733662532913,2.1155,236.2,236.16,1.05882486]
[1733662533114,1.3955,236.23,236.17,1.05882486]
[1733662533314,1.3955,236.23,236.18,1.05882486]
[1733662533510,2.1154,236.21,236.19,1.05882486]
[1733662533819,2.1154,236.21,236.2,1.05873588]
[1733662534314,1.3955,236.23,236.11,0.09487739]
[1733662534514,1.3955,236.23,236.12,4.87035273]
[1733662534820,1.3955,236.23,236.07,2.38]
[1733662534821,1.3955,236.23,236.13,4.87035273]
[1733662535018,2.6658,236.23,236.14,2.75280806]
[1733662535318,2.6658,236.23,236.15,2.75280806]
[1733662535523,2.6658,236.23,236.16,1.05877233]
[1733662535717,2.6658,236.23,236.17,1.05877233]
[1733662536024,2.1157,236.17,236.09,0.09538708]
[1733662536212,2.1157,236.17,236.1,4.96647791]
[1733662536417,2.6658,236.23,236.09,2.1163]
[1733662536617,2.1158,236.16,236.11,1.69429859]
[1733662536911,2.1158,236.16,236.12,4.87110843]
[1733662537224,2.1158,236.16,236.13,4.87110843]
[1733662537422,2.1158,236.16,236.14,4.87110843]
[1733662537722,2.1158,236.16,236.15,4.87099719]
[1733662538121,2.1158,236.16,236.15,2.7532352]
[1733662539916,2.1157,236.18,236.15,2.7532352]
[1733662540117,2.6658,236.23,236.16,4.87084885]
[1733662540314,1.3955,236.23,236.17,4.87070577]
[1733662540512,1.3955,236.23,236.18,4.87070577]
[1733662540715,2.1154,236.2,236.19,2.7532352]
[1733662540918,2.38,236.26,236.19,2.7532352]
[1733662541118,2.38,236.26,236.2,2.7532352]
[1733662541316,2.1152,236.22,236.21,2.7532352]
[1733662541920,2.1152,236.22,236.21,1.05893661]
[1733662542923,2.38,236.26,236.11,2.47547748]
[1733662543121,2.38,236.26,236.12,4.96631467]
[1733662543328,2.38,236.26,236.13,6.02517257]
[1733662543523,2.1156,236.18,236.14,3.17663295]
[1733662543723,2.1156,236.18,236.15,4.87083719]
[1733662543929,2.1156,236.18,236.16,4.87083719]
[1733662544222,2.1156,236.18,236.17,2.75308189]
[1733662544626,2.1156,236.18,236.17,4.87072114]
[1733662544821,2.38,236.26,236.17,4.87072114]
[1733662545021,2.38,236.26,236.18,2.75308189]
[1733662545332,2.38,236.26,236.19,2.75308189]
[1733662545524,2.1153,236.21,236.2,2.75308189]
[1733662545923,2.1153,236.21,236.2,4.87053934]
[1733662546219,2.1153,236.21,236.2,2.75308189]
[1733662548042,2.1153,236.21,236.2,1.05887765]
[1733662548219,2.1153,236.21,236.2,2.75288923]
[1733662548428,2.1153,236.21,236.2,1.05887765]
[1733662549130,2.36,236.27,236.2,1.05887765]
[1733662549323,2.1153,236.22,236.21,1.05887765]
[1733662551331,2.1153,236.22,236.16,2.1158]
[1733662551534,2.1153,236.22,236.17,2.75247945]
[1733662551734,2.1153,236.22,236.18,1.05864594]
[1733662551935,2.1153,236.22,236.19,1.05864594]
[1733662552234,2.1153,236.22,236.16,2.1158]
[1733662552437,2.1153,236.22,236.17,1.05867351]
[1733662552729,2.1153,236.22,236.18,1.05867351]
[1733662552932,2.1153,236.22,236.16,2.1158]
[1733662553234,2.1153,236.22,236.11,2.38]
[1733662553235,2.36,236.27,236.11,2.38]
[1733662553534,2.36,236.27,236.12,2.75267828]
[1733662553732,2.36,236.27,236.13,1.05872241]
[1733662553931,2.36,236.27,236.11,2.1161]
[1733662553932,2.36,236.27,236.14,1.05880939]
[1733662554129,2.36,236.27,236.11,2.1161]
[1733662554432,2.36,236.27,236.12,1.05882725]
[1733662554433,2.1159,236.15,236.12,1.05882725]
[1733662554634,2.1159,236.15,236.09,7.2143]
[1733662554940,2.36,236.21,236.1,1.05887966]
[1733662554941,2.116,236.14,236.1,1.05887966]
[1733662555231,2.36,236.21,236.09,2.7379]
[1733662555436,1.2922,236.2,236.09,2.7379]
[1733662555638,2.116,236.14,236.09,2.7379]
[1733662558839,2.1161,236.13,236.09,2.7379]
[1733662561130,2.36,236.18,236.09,2.7379]
[1733662561340,2.1161,236.12,236.09,2.7379]
[1733662561846,2.36,236.18,236.06,4.4766]
[1733662562034,2.36,236.18,236.07,1.05895995]
[1733662562238,2.36,236.18,236.08,1.05895995]
[1733662562437,2.36,236.18,236.06,2.36]
[1733662562639,2.36,236.18,236.01,2.36]
[1733662562841,1.3628,236.17,236.02,1.05908967]
[1733662563036,1.3628,236.17,236.03,1.05908967]
[1733662563236,1.3628,236.17,236.02,2.117]
[1733662564141,2.1164,236.1,236.03,2.1169]
[1733662564345,2.1164,236.1,236.03,3.17609475]
[1733662564541,2.1164,236.1,236.03,2.1169]
[1733662564739,1.3628,236.17,236.03,2.1169]
[1733662564937,2.36,236.16,236.01,2.1171]
[1733662565245,2.36,236.16,236.02,1.05918889]
[1733662565547,2.36,236.16,236.01,2.1171]
[1733662565739,2.1167,236.07,236.02,1.05919489]
[1733662565939,2.1167,236.07,236.01,2.1171]
[1733662566644,2.1166,236.07,236.01,2.1171]
[1733662566845,2.36,236.1,235.98,2.36]
[1733662567044,2.36,236.1,235.99,3.81309276]
[1733662567238,2.36,236.1,236.0,2.11838486]
[1733662567448,2.1165,236.08,236.03,2.1169]
[1733662567752,1.3502,236.19,235.98,2.36]
[1733662568042,2.1161,236.12,235.99,7.62549295]
[1733662568249,2.1161,236.12,236.0,10.30718709]
[1733662568445,2.36,236.15,235.98,2.36]
[1733662568446,2.36,236.15,236.01,5.50731278]
[1733662568743,2.36,236.15,236.08,2.1165]
[1733662569253,2.116,236.15,236.1,2.1163]
[1733662569747,2.36,236.21,236.11,1.05887674]
[1733662569940,2.1158,236.16,236.12,2.1161]
[1733662570140,2.1158,236.16,236.05,4.1489]
[1733662570141,2.36,236.21,236.11,2.36]
[1733662570341,2.1156,236.18,236.14,2.1159]
[1733662570550,2.36,236.21,236.11,2.36]
[1733662570747,2.36,236.21,236.12,1.05880671]
[1733662570946,2.36,236.21,236.11,2.36]
[1733662571147,2.1159,236.15,236.11,4.4762]
[1733662571646,2.36,236.21,236.12,1.0587714]
[1733662571844,2.1161,236.13,236.08,2.1165]
[1733662572045,2.36,236.21,236.09,1.05890664]
[1733662572251,2.1163,236.11,236.06,2.36]
[1733662572551,2.36,236.15,236.07,3.81216265]
[1733662572851,2.1162,236.12,236.08,1.05893795]
[1733662573152,2.1162,236.12,236.09,1.05893795]
[1733662573348,2.1162,236.12,236.07,2.1166]
[1733662573547,2.1162,236.12,236.08,1.05893357]
[1733662573850,2.1162,236.12,236.09,1.05893357]
[1733662574041,2.1162,236.12,236.07,2.1166]
[1733662574242,2.1162,236.12,236.08,1.05894017]
[1733662574449,2.1162,236.12,236.09,1.05894017]
[1733662574651,2.1162,236.12,236.07,2.1166]
[1733662574844,2.116,236.14,236.09,2.1164]
[1733662575049,2.116,236.14,236.06,2.36]
[1733662575245,2.36,236.16,236.07,2.1178674]
[1733662575750,2.36,236.16,236.07,1.0589337]
[1733662575952,2.116,236.14,236.1,2.1163]
[1733662578660,2.1161,236.13,236.09,2.1164]
[1733662579954,2.28,236.18,236.06,2.36]
[1733662580159,2.28,236.18,236.07,3.81184552]
[1733662580355,2.28,236.18,236.08,1.05888031]
[1733662580661,2.28,236.18,236.09,1.05888031]
[1733662580855,2.116,236.15,236.11,2.1162]
[1733662581054,2.28,236.18,236.06,2.36]
[1733662581249,2.28,236.18,236.07,1.05883255]
[1733662581461,2.1159,236.15,236.1,2.1163]
[1733662583756,2.28,236.18,236.1,2.1163]
[1733662583956,2.28,236.18,236.09,2.1164]
[1733662584156,2.28,236.18,236.07,2.28]
[1733662584361,2.1163,236.11,236.08,1.05891347]
[1733662584564,2.1163,236.11,236.06,2.1166]
[1733662584857,2.28,236.18,236.07,1.05891366]
[1733662585051,1.2895,236.17,236.05,2.766]
[1733662585658,2.116,236.14,236.07,2.1166]
[1733662585860,1.2895,236.17,236.05,2.766]
[1733662586060,1.2895,236.17,236.06,1.05904805]
[1733662586262,2.116,236.14,236.09,2.1163]
[1733662588656,2.1161,236.13,236.05,2.766]
[1733662588955,1.2895,236.17,236.06,1.05900184]
[1733662589162,1.2895,236.17,236.1,2.1163]
[1733662589361,1.2895,236.17,236.05,2.766]
[1733662589558,1.2895,236.17,236.06,1.05895191]
[1733662589763,1.2895,236.17,236.07,1.05895191]
[1733662589964,1.2895,236.17,236.05,2.766]
[1733662590163,2.116,236.14,236.09,2.1163]
[1733662590469,2.116,236.14,236.05,2.766]
[1733662590765,2.116,236.14,236.06,1.05896391]
[1733662590965,2.116,236.14,236.07,1.05896391]
[1733662591164,2.116,236.14,236.09,2.1164]
[1733662591464,1.2895,236.17,236.09,2.1164]
[1733662591667,2.1161,236.13,236.09,2.1164]
[1733662592260,2.116,236.14,236.07,2.1165]
[1733662592460,1.2895,236.17,236.07,2.1165]
[1733662592667,1.2895,236.17,236.05,2.766]
[1733662592862,1.2895,236.17,236.06,1.05901317]
[1733662593064,4.2303,236.24,236.07,1.05901317]
[1733662593273,2.7131,236.3,236.08,2.75318548]
[1733662593274,2.28,236.23,236.08,2.75318548]
[1733662593567,2.28,236.22,236.11,2.1162]
[1733662594368,2.1158,236.16,236.11,2.1162]
[1733662596863,2.1158,236.16,236.08,2.28]
[1733662597057,2.28,236.22,236.09,1.05886239]
[1733662597368,2.6945,236.21,236.06,2.28]
[1733662597667,2.6945,236.21,236.07,1.05897746]
[1733662597868,1.4032,236.2,236.06,2.28]
[1733662598168,1.4032,236.2,236.07,1.05898022]
[1733662598369,1.4032,236.2,236.06,2.28]
[1733662598563,1.4032,236.2,236.09,2.1164]
[1733662598969,2.1159,236.15,236.09,2.1164]
[1733662599367,1.4032,236.2,236.1,2.1163]
[1733662600769,2.1158,236.16,236.1,2.1163]
[1733662605375,1.4032,236.2,236.1,2.1163]
[1733662605674,2.1159,236.15,236.1,2.1163]
[1733662606078,2.1159,236.15,236.11,1.05887189]
[1733662606270,2.1159,236.15,236.1,2.1163]
[1733662606471,2.1159,236.15,236.11,1.05887189]
[1733662606671,2.1159,236.15,236.1,2.1163]
[1733662607071,2.1159,236.15,236.11,1.0588682]
[1733662607276,2.1159,236.15,236.09,2.1164]
[1733662607569,2.116,236.14,236.1,1.05887337]
[1733662607871,1.4032,236.2,236.06,2.28]
[1733662608076,1.4032,236.2,236.07,3.81228962]
[1733662608277,1.4032,236.2,236.08,1.05897564]
[1733662608578,2.1161,236.13,236.08,2.1165]
[1733662610174,2.1161,236.13,236.09,1.05900166]
[1733662610477,2.1162,236.12,236.07,2.1166]
[1733662610678,2.1162,236.12,236.08,1.05900168]
[1733662610882,2.1162,236.11,236.09,1.05900168]
[1733662611072,2.1162,236.11,236.07,2.1166]
[1733662611269,2.1162,236.11,236.08,1.05900103]
[1733662611472,2.1162,236.11,236.09,1.05900103]
[1733662611674,2.1162,236.11,236.07,2.1166]
[1733662611871,2.1162,236.11,236.08,1.0590192]
[1733662612078,2.1162,236.11,236.07,2.1166]
[1733662612279,2.1162,236.11,236.08,1.0590463]
[1733662612482,2.1162,236.11,236.09,1.0590463]
[1733662612681,2.1162,236.11,236.07,2.1166]
[1733662612877,2.1162,236.11,236.08,1.05904645]
[1733662613178,2.1162,236.11,236.07,2.1166]
[1733662613380,2.1162,236.11,236.08,1.05900537]
[1733662613580,2.1162,236.11,236.07,2.1166]
[1733662613776,2.1162,236.11,236.08,1.05900609]
[1733662613977,2.1162,236.11,236.07,2.1166]
[1733662614776,2.1162,236.11,236.08,1.05899757]
[1733662614974,2.1162,236.11,236.07,2.1166]
[1733662615172,2.1162,236.11,236.08,1.05899748]
[1733662615376,2.1162,236.11,236.07,2.1166]
[1733662615377,2.1163,236.1,236.07,2.1166]
[1733662615572,2.18,236.17,236.08,1.05900197]
[1733662615778,2.18,236.17,236.02,2.18]
[1733662615983,2.1161,236.13,236.03,1.05913867]
[1733662616279,2.18,236.12,236.04,1.05921358]
[1733662616478,2.18,236.12,236.02,2.18]
[1733662616682,2.1167,236.06,236.03,1.05921244]
[1733662616982,2.1167,236.06,236.02,2.18]
[1733662617181,2.1167,236.06,236.03,1.05921927]
[1733662617383,2.1167,236.06,236.02,2.18]
[1733662617681,2.1167,236.06,236.03,1.05922085]
[1733662617984,2.18,236.12,235.95,4.19101927]
[1733662618184,4.0014,236.11,235.97,2.18]
[1733662618485,4.0014,236.11,235.98,1.0592295]
[1733662618685,4.0014,236.11,235.97,2.1174]
[1733662618686,4.0014,236.11,235.99,1.0592295]
[1733662618881,4.0014,236.11,236.0,1.0592295]
[1733662619078,4.0014,236.11,235.97,2.1174]
[1733662619282,4.0014,236.11,235.98,1.05936739]
[1733662619589,4.0014,236.11,235.97,2.1174]
[1733662619775,2.117,236.03,235.98,1.05936825]
[1733662619979,2.18,236.07,235.95,2.11909302]
[1733662620181,2.18,236.07,235.96,1.05940605]
[1733662620493,2.18,236.07,235.97,2.1174]
[1733662621175,2.1169,236.04,235.97,2.1174]
[1733662621484,2.18,236.07,235.97,2.1174]
[1733662621685,2.18,236.07,235.98,1.05936861]
[1733662621883,2.2,236.08,235.99,1.05936861]
[1733662622184,2.2,236.08,235.95,4.29909302]
[1733662622386,2.1167,236.06,235.96,3.81370648]
[1733662622585,2.1167,236.06,235.99,2.1172]
[1733662623187,2.1167,236.06,236.0,2.1172]
[1733662623380,2.1168,236.05,236.0,2.1172]
[1733662623585,2.1168,236.05,235.95,4.29909302]
[1733662623786,2.1168,236.05,236.0,2.1172]
[1733662624583,2.1168,236.05,235.95,4.29909302]
[1733662624783,2.1168,236.05,236.01,2.1171]
[1733662624987,2.1167,236.06,235.96,1.05936285]
[1733662625183,2.1167,236.06,235.97,3.81347621]
[1733662625379,2.1167,236.06,235.98,3.81347621]
[1733662625585,3.5173,236.11,236.04,2.1168]
[1733662625789,3.5173,236.11,236.0,2.2]
[1733662626081,3.5173,236.11,236.01,1.05917017]
[1733662626279,3.5173,236.11,236.02,1.05917017]
[1733662626482,3.5173,236.11,236.0,2.2]
[1733662626689,2.1165,236.09,236.04,2.1168]
[1733662627680,3.5173,236.11,236.04,2.1168]
[1733662627887,3.5173,236.11,236.0,2.2]
[1733662628089,3.5173,236.11,236.03,2.1169]
[1733662628681,2.1166,236.08,236.03,2.1169]
[1733662628885,3.5173,236.11,236.03,2.1169]
[1733662630785,2.1166,236.08,236.0,2.2]
[1733662631094,3.5173,236.11,236.05,2.1168]
[1733662632187,2.2,236.11,236.05,2.1168]
[1733662632689,2.1164,236.1,236.05,2.1168]
[1733662633089,4.0337,236.17,236.0,2.2]
[1733662633295,2.2,236.16,236.07,2.1166]
[1733662633491,2.2,236.16,236.0,2.2]
[1733662633690,2.2,236.16,236.01,1.05913384]
[1733662633886,2.1161,236.13,236.07,2.1165]
[1733662634590,2.2,236.16,235.96,1.3371]
[1733662634795,2.7618,236.17,235.97,12.44253202]
[1733662634993,2.7618,236.17,235.98,7.54878968]
[1733662635192,2.7618,236.17,235.99,5.93100695]
[1733662635388,2.116,236.14,236.0,7.62540899]
[1733662635588,1.3811,236.17,236.01,7.62540899]
[1733662635795,1.3543,236.25,236.02,11.05800899]
[1733662636101,1.3543,236.25,236.03,11.15700899]
[1733662636102,2.1156,236.18,236.03,11.15700899]
[1733662636397,2.1156,236.18,236.04,5.11914361]
[1733662636601,2.1156,236.18,236.05,3.81274361]
[1733662636791,2.1156,236.18,236.04,1.3064]
[1733662636996,2.14,236.24,236.04,1.3064]
[1733662637193,2.1157,236.17,236.05,2.75320038]
[1733662637498,2.1157,236.17,236.05,3.8121236]
[1733662637698,2.1156,236.18,236.13,2.116]
[1733662638595,2.14,236.24,236.1,2.14]
[1733662639298,2.14,236.24,236.13,2.116]
[1733662639795,2.1154,236.21,236.13,2.116]
[1733662639997,2.14,236.24,236.13,2.116]
[1733662640396,2.14,236.24,236.1,2.14]
[1733662640600,2.14,236.24,236.07,2.14]
[1733662641299,2.14,236.24,236.09,2.1164]
[1733662641895,2.1155,236.2,236.09,2.1164]
[1733662642201,2.14,236.19,236.1,2.1163]
[1733662642402,2.14,236.18,236.1,2.1163]
[1733662642601,2.1159,236.15,236.1,2.1163]
[1733662643194,2.116,236.14,236.07,2.14]
[1733662644602,2.116,236.14,236.09,2.1164]
[1733662645001,2.1158,236.16,236.07,2.14]
[1733662645405,2.14,236.18,236.1,2.1163]
[1733662646102,2.14,236.18,236.07,2.14]
[1733662646403,2.1161,236.13,236.08,2.1164]
[1733662648804,2.1161,236.13,236.09,2.1164]
[1733662650604,2.1163,236.1,236.05,2.1167]
[1733662650813,2.14,236.18,236.06,1.05897817]
[1733662651014,2.14,236.17,236.04,2.14]
[1733662651312,2.14,236.17,236.05,1.05896945]